bitfinex-derivatives/quotes_SOLF0:USTF0_20240908
["timestamp","ask_amount","ask_price","bid_price","bid_amount"]
[1725805249119,3.9014,128.17,128.13,12.2923]
[1725805250225,8.39,128.19,128.16,8.39]
[1725805250226,3.9007,128.19,128.16,8.39]
[1725805250426,3.9007,128.19,128.16,12.28708177]
[1725805252117,3.9007,128.19,128.16,3.89708177]
[1725805252825,8.39,128.2,128.16,3.89708177]
[1725805253120,8.39,128.18,128.12,8.39]
[1725805253618,9.6957,128.19,128.13,8.39]
[1725805254327,3.9014,128.17,128.14,3.9021]
[1725805255315,9.6957,128.19,128.13,8.39]
[1725805255719,13.54041322,128.19,128.13,8.39]
[1725805255924,3.9014,128.17,128.14,3.9021]
[1725805256222,3.9014,128.17,128.14,12.2921]
[1725805257315,3.9014,128.17,128.14,8.39]
[1725805257719,3.9014,128.17,128.15,8.39]
[1725805258624,1.3057,128.19,128.15,8.39]
[1725805259115,5.2066,128.19,128.15,8.39]
[1725805259319,3.9009,128.19,128.16,12.22925087]
[1725805259819,13.58521057,128.22,128.16,12.22925087]
[1725805260025,1.0,128.17,128.16,12.22925087]
[1725805260316,1.0,128.17,128.09,5.34284856]
[1725805260523,1.0,128.17,128.15,8.39]
[1725805260727,1.0,128.17,128.16,3.87211298]
[1725805261417,4.9012,128.17,128.15,8.39]
[1725805262830,4.9012,128.17,128.14,3.9019]
[1725805263123,3.9016,128.16,128.14,8.39]
[1725805264621,3.9016,128.16,128.13,3.9023]
[1725805266623,3.9016,128.16,128.14,8.39]
[1725805267428,1.0,128.17,128.09,5.34284856]
[1725805267429,1.0,128.17,128.15,8.39]
[1725805267729,1.0,128.17,128.16,8.39]
[1725805267934,1.0,128.17,128.16,12.37681335]
[1725805268932,1.0,128.17,128.16,3.98681335]
[1725805269123,1.0,128.17,128.15,8.39]
[1725805269631,1.0,128.17,128.15,12.2918]
[1725805269933,1.0,128.17,128.09,5.34284856]
[1725805270129,1.0,128.17,128.13,8.39]
[1725805270329,1.0,128.17,128.13,12.2922]
[1725805270330,4.9015,128.17,128.13,12.2922]
[1725805272137,4.9015,128.17,128.15,8.39]
[1725805272436,1.0,128.17,128.15,8.39]
[1725805273432,4.9013,128.17,128.15,8.39]
[1725805274938,3.9015,128.16,128.15,8.39]
[1725805276639,4.9013,128.17,128.15,8.39]
[1725805277648,3.9015,128.16,128.15,8.39]
[1725805279032,3.9015,128.16,128.13,12.2923]
[1725805280742,1.0,128.17,128.13,8.39]
[1725805281648,3.9015,128.16,128.13,12.2922]
[1725805282147,1.0,128.17,128.13,8.39]
[1725805282353,4.9014,128.17,128.15,8.39]
[1725805282851,1.0,128.17,128.16,8.39]
[1725805283143,1.0,128.17,128.09,5.34284856]
[1725805283352,1.0,128.17,128.15,8.39]
[1725805283738,4.9015,128.17,128.15,8.39]
[1725805285449,3.9015,128.16,128.15,8.39]
[1725805286339,3.9015,128.16,128.13,3.9023]
[1725805286340,3.9015,128.16,128.13,12.2923]
[1725805287342,3.9022,128.14,128.09,5.34284856]
[1725805287545,9.39,128.17,128.09,5.34284856]
[1725805287753,9.39,128.17,128.11,8.39]
[1725805287948,3.9024,128.14,128.11,8.39]
[1725805288150,3.97666978,128.16,128.1,3.9031]
[1725805288345,9.39,128.17,128.11,8.39]
[1725805288554,1.0,128.17,128.11,12.293]
[1725805288744,3.83700062,128.16,128.12,8.39]
[1725805290449,3.9024,128.13,128.12,8.39]
[1725805291942,8.39,128.15,128.09,1.37]
[1725805292147,5.34358014,128.16,128.09,3.95020293]
[1725805292348,8.39,128.14,128.08,8.39]
[1725805292553,8.39,128.14,128.09,3.846394]
[1725805293154,3.9029,128.12,128.1,8.39]
[1725805294259,3.903,128.11,128.09,12.36900241]
[1725805294461,8.39,128.14,128.09,12.36900241]
[1725805295051,3.9033,128.1,128.09,3.97900241]
[1725805295251,3.9033,128.1,128.08,8.39]
[1725805295651,3.9033,128.1,128.08,12.28626102]
[1725805296253,5.188257,128.16,128.08,16.19016102]
[1725805296556,8.39,128.14,128.08,16.19016102]
[1725805297454,3.9031,128.11,128.08,12.28626102]
[1725805297660,8.39,128.14,128.08,3.89626102]
[1725805297854,8.39,128.14,128.08,12.28626102]
[1725805298654,3.9036,128.1,128.08,12.28626102]
[1725805298856,8.39,128.13,128.02,2.6495]
[1725805299056,1.2816,128.12,128.05,8.39]
[1725805299258,9.7424,128.16,128.09,8.39]
[1725805299458,1.3524,128.16,128.09,16.16929045]
[1725805299661,9.7424,128.16,128.09,16.16929045]
[1725805299854,8.39,128.15,128.09,16.16929045]
[1725805300054,8.39,128.13,128.08,8.39]
[1725805300254,3.9033,128.11,128.07,8.39]
[1725805300454,3.9033,128.11,128.07,12.2941]
[1725805301859,3.9034,128.1,128.07,12.2941]
[1725805302361,8.39,128.12,128.06,8.39]
[1725805302963,8.39,128.12,128.07,8.39]
[1725805302964,3.9038,128.09,128.07,8.39]
[1725805303157,3.9038,128.09,128.05,3.9047]
[1725805303458,3.9038,128.09,128.07,8.39]
[1725805303663,1.3524,128.16,128.08,8.39]
[1725805303865,8.39,128.15,128.09,8.39]
[1725805304254,1.3524,128.16,128.09,8.39]
[1725805304455,8.39,128.15,128.09,8.39]
[1725805305169,8.39,128.15,128.09,12.2936]
[1725805305359,1.3524,128.16,128.1,8.39]
[1725805305560,9.7424,128.16,128.1,8.39]
[1725805305856,9.7424,128.16,128.1,12.2932]
[1725805306060,9.7424,128.16,128.1,16.11160893]
[1725805306263,9.7424,128.16,128.11,8.39]
[1725805306666,3.9023,128.14,128.11,8.39]
[1725805308170,3.9027,128.12,128.1,3.81840893]
[1725805308369,3.9027,128.12,128.09,8.39]
[1725805308663,3.9025,128.13,128.1,3.84747482]
[1725805309572,3.9023,128.14,128.12,8.39]
[1725805310561,3.9019,128.15,128.12,8.39]
[1725805311266,3.9022,128.14,128.12,8.39]
[1725805313055,3.9019,128.15,128.12,8.39]
[1725805314662,3.9022,128.14,128.12,8.39]
[1725805316170,3.9024,128.13,128.1,3.89001639]
[1725805316473,3.9024,128.13,128.1,8.39]
[1725805316674,3.9024,128.13,128.11,3.93420231]
[1725805316866,3.9022,128.14,128.1,12.2933]
[1725805317068,1.3524,128.16,128.1,12.2933]
[1725805317269,1.3524,128.16,128.1,16.18730561]
[1725805317473,3.9026,128.13,128.1,16.18730561]
[1725805317869,8.39,128.15,128.09,8.39]
[1725805319168,1.3524,128.16,128.08,3.9039]
[1725805319169,9.7424,128.16,128.1,8.39]
[1725805319572,3.9029,128.12,128.1,8.39]
[1725805320578,1.3524,128.16,128.11,8.39]
[1725805321071,3.9026,128.13,128.11,8.39]
[1725805321466,3.9026,128.13,128.1,8.39]
[1725805322271,8.39,128.15,128.09,8.39]
[1725805323378,3.9032,128.11,128.09,8.39]
[1725805324879,3.9033,128.1,128.09,8.39]
[1725805325577,3.84201077,128.1,128.02,6.5596413]
[1725805325775,8.39,128.12,128.06,8.39]
[1725805325978,3.9041,128.08,128.06,8.39]
[1725805326175,23.36,128.12,127.95,19.10308065]
[1725805326474,8.39,128.1,128.03,8.39]
[1725805326685,8.39,128.1,128.01,1.3131]
[1725805326871,9.39,128.11,128.04,8.39]
[1725805327068,3.9047,128.06,128.04,8.39]
[1725805327283,13.29958069,128.11,128.03,8.39]
[1725805327284,8.39,128.1,128.03,8.39]
[1725805327690,8.39,128.1,128.05,8.39]
[1725805328075,3.9047,128.06,128.05,8.39]
[1725805328273,8.39,128.08,128.01,1.3131]
[1725805328577,3.9051,128.05,128.02,8.39]
[1725805328780,8.39,128.09,128.02,8.39]
[1725805329171,31.75,128.09,128.02,8.39]
[1725805329485,4.90958069,128.11,128.01,1.3131]
[1725805329486,8.39,128.1,128.03,8.39]
[1725805329671,3.9048,128.06,128.03,8.39]
[1725805330780,8.39,128.1,128.03,8.39]
[1725805330781,3.9049,128.05,128.03,8.39]
[1725805331478,13.29958069,128.11,128.03,8.39]
[1725805331785,13.29958069,128.11,128.05,8.39]
[1725805333583,31.75,128.08,128.0,43.92285468]
[1725805333887,31.75,128.08,128.0,48.39]
[1725805333888,3.9056,128.03,128.0,48.39]
[1725805334179,8.39,128.06,128.0,40.0]
[1725805334388,8.39,128.06,128.0,48.39]
[1725805334581,8.39,128.06,128.0,40.0]
[1725805334779,3.97961574,128.05,128.0,48.39]
[1725805335275,3.9058,128.02,128.0,48.39]
[1725805335876,3.9056,128.03,128.0,48.39]
[1725805336579,8.39,128.05,128.0,40.0]
[1725805336786,8.39,128.02,128.0,40.0]
[1725805337080,8.39,128.01,128.0,40.0]
[1725805337480,3.9061,128.01,128.0,40.0]
[1725805338281,12.2961,128.01,128.0,40.0]
[1725805339581,12.2961,128.01,128.0,27.16230001]
[1725805339582,35.6561,128.01,128.0,27.16230001]
[1725805339776,3.9078,127.96,127.93,9.7469]
[1725805340280,3.908,127.95,127.93,9.7469]
[1725805340491,3.908,127.95,127.93,11.0479]
[1725805340789,3.82902242,128.01,127.93,11.0479]
[1725805340981,3.9077,127.96,127.93,11.0479]
[1725805341383,3.9077,127.96,127.94,8.39]
[1725805341681,3.9074,127.97,127.94,8.39]
[1725805342587,3.9074,127.97,127.94,12.2982]
[1725805342885,3.9072,127.98,127.95,8.39]
[1725805344483,3.9072,127.98,127.94,3.9082]
[1725805344484,3.88324476,128.02,127.93,2.6579]
[1725805344686,3.88324476,128.02,127.96,8.39]
[1725805344884,13.274417,128.03,127.97,8.39]
[1725805345285,13.274417,128.03,127.93,2.6579]
[1725805345490,3.9066,128.0,127.96,12.2974]
[1725805346690,3.9067,127.99,127.95,12.2979]
[1725805347192,8.39,128.0,127.95,8.39]
[1725805347394,3.907,127.98,127.95,8.39]
[1725805348983,3.9068,127.99,127.96,8.39]
[1725805351088,3.9071,127.98,127.94,3.9081]
[1725805351292,3.9071,127.98,127.95,8.39]
[1725805352294,8.39,127.99,127.92,3.93021801]
[1725805352487,8.39,127.99,127.92,8.39]
[1725805352691,3.9078,127.96,127.92,16.21006362]
[1725805353197,147.04264632,128.01,127.92,16.21006362]
[1725805353198,147.04264632,128.01,127.93,8.39]
[1725805353397,8.39,128.0,127.94,8.39]
[1725805353899,3.9072,127.98,127.94,12.298]
[1725805355107,1.0,128.03,127.97,8.39]
[1725805355398,1.0,128.03,127.93,4.0692]
[1725805355399,9.39,128.03,127.98,8.39]
[1725805355599,3.9066,128.0,127.98,8.39]
[1725805359193,1.0,128.03,127.99,8.39]
[1725805359392,1.0,128.03,128.0,1.4044]
[1725805359602,1.0,128.03,128.0,9.7944]
[1725805359798,3.906,128.02,128.0,1.4044]
[1725805360904,1.0,128.03,128.01,12.2959]
[1725805361106,1.0,128.03,128.02,8.39]
[1725805361404,3.905,128.05,128.02,8.39]
[1725805361601,24.36,128.11,128.04,8.39]
[1725805361602,3.9045,128.07,128.04,8.39]
[1725805361800,1.0,128.11,128.04,8.39]
[1725805362002,1.0,128.11,128.06,8.39]
[1725805362209,3.9035,128.1,128.06,12.2944]
[1725805362597,3.9028,128.12,128.09,8.39]
[1725805362904,8.39,128.14,128.09,8.39]
[1725805363104,3.9027,128.13,128.1,8.39]
[1725805363602,3.9027,128.13,128.07,5.15474833]
[1725805363603,177.59061652,128.17,128.11,8.39]
[1725805363793,3.9023,128.14,128.11,8.39]
[1725805364200,177.59061652,128.17,128.11,3.903]
[1725805364201,3.9019,128.15,128.11,3.903]
[1725805365220,3.9016,128.16,128.12,3.9027]
[1725805365900,3.9018,128.15,128.11,24.8929]
[1725805366106,3.9018,128.15,128.11,3.9029]
[1725805366705,20.99,128.16,128.08,23.7374]
[1725805368104,20.99,128.15,128.07,1.3083]
[1725805368505,3.903,128.12,128.07,6.5837]
[1725805368710,3.903,128.12,128.07,7.9683]
[1725805368905,3.903,128.12,128.07,28.9583]
[1725805369706,3.903,128.12,128.08,3.9037]
[1725805370303,3.903,128.12,128.09,20.99]
[1725805371213,3.903,128.12,128.09,24.8936]
[1725805371705,165.22060282,128.17,128.1,3.9033]
[1725805371706,3.9022,128.14,128.1,3.9033]
[1725805371915,3.9022,128.14,128.1,20.99]
[1725805372508,3.9022,128.14,128.1,24.8931]
[1725805372719,3.9019,128.15,128.1,20.99]
[1725805373008,3.9019,128.15,128.12,20.99]
[1725805373213,3.9015,128.16,128.12,20.99]
[1725805373417,3.9015,128.16,128.13,1.3286]
[1725805373612,1.272,128.22,128.14,20.99]
[1725805373806,3.9012,128.17,128.14,22.2936]
[1725805374911,3.901,128.18,128.14,26.1955]
[1725805375116,22.3326,128.23,128.14,23.6629]
[1725805375709,3.9008,128.19,128.15,3.9016]
[1725805375909,20.99,128.25,128.16,20.99]
[1725805376510,20.99,128.25,128.16,24.8915]
[1725805377203,3.9005,128.2,128.16,24.8915]
[1725805378217,3.9005,128.2,128.17,20.99]
[1725805378407,3.9001,128.21,128.17,24.891]
[1725805379616,3.9001,128.21,128.18,3.9009]
[1725805380114,1.2696,128.26,128.19,26.2615]
[1725805380306,1.3537,128.27,128.2,1.3704]
[1725805380509,3.95814335,128.28,128.21,20.99]
[1725805380713,1.3363,128.31,128.21,24.81889186]
[1725805380714,3.8991,128.24,128.21,24.81889186]
[1725805381817,20.99,128.28,128.2,2.773]
[1725805382520,20.99,128.26,128.2,1.3704]
[1725805382719,20.99,128.26,128.19,1.3712]
[1725805383024,3.9003,128.2,128.19,1.3712]
[1725805386423,3.9009,128.19,128.15,24.8917]
[1725805386622,3.89196482,128.23,128.15,22.3728]
[1725805386822,1.3715,128.24,128.15,22.3728]
[1725805387023,3.9012,128.18,128.15,22.3728]
[1725805387323,3.86661127,128.22,128.15,22.3728]
[1725805387522,3.901,128.18,128.15,26.2745]
[1725805387826,3.86661127,128.22,128.07,36.61]
[1725805387827,3.88437966,128.19,128.12,20.99]
[1725805388120,3.9017,128.16,128.13,20.99]
[1725805389519,3.9018,128.15,128.13,20.99]
[1725805390020,3.87462677,128.2,128.13,20.99]
[1725805390219,1.0,128.21,128.13,20.99]
[1725805390822,4.80930087,128.21,128.13,20.99]
[1725805391415,3.9017,128.16,128.13,20.99]
[1725805392624,3.9014,128.17,128.15,20.99]
[1725805392816,4.80930087,128.21,128.15,20.99]
[1725805392817,1.0,128.21,128.15,20.99]
[1725805393431,4.98213171,128.21,128.15,20.99]
[1725805394222,3.9014,128.17,128.15,20.99]
[1725805394418,4.98213171,128.21,128.14,1.3762]
[1725805395130,3.9017,128.16,128.14,1.3762]
[1725805398533,4.98213171,128.21,128.14,1.3762]
[1725805398534,3.9013,128.17,128.14,1.3762]
[1725805398833,3.9013,128.17,128.14,5.2783]
[1725805399928,3.9016,128.16,128.14,1.3762]
[1725805403539,3.9013,128.17,128.14,5.2783]
[1725805404733,3.9016,128.16,128.14,1.3762]
[1725805406130,3.9018,128.15,128.14,1.3762]
[1725805408645,3.9017,128.16,128.14,1.3762]
[1725805410046,44.42,128.2,128.13,24.85665106]
[1725805410336,44.42,128.2,128.09,1.293]
[1725805410337,20.99,128.15,128.09,1.293]
[1725805411544,3.9033,128.1,128.09,1.293]
[1725805412846,3.9032,128.11,128.09,1.293]
[1725805415039,3.9029,128.12,128.09,1.293]
[1725805415252,147.94495281,128.18,128.1,20.99]
[1725805415639,3.9023,128.14,128.1,24.8931]
[1725805416838,3.9023,128.14,128.11,3.903]
[1725805417347,3.9025,128.13,128.1,20.99]
[1725805418236,3.9025,128.13,128.1,24.8932]
[1725805420644,44.42,128.17,128.1,20.99]
[1725805420941,44.42,128.16,128.09,1.293]
[1725805421149,20.99,128.14,128.07,20.99]
[1725805421451,3.9035,128.1,128.07,20.99]
[1725805421750,3.98969796,128.13,128.07,20.99]
[1725805422240,3.9035,128.1,128.07,20.99]
[1725805422634,3.9035,128.1,128.07,24.8942]
[1725805422841,3.9032,128.11,128.07,26.1668]
[1725805423044,3.9032,128.11,128.08,3.9039]
[1725805423742,5.23781066,128.14,128.07,26.1667]
[1725805424248,3.9033,128.11,128.07,26.1667]
[1725805426250,5.23781066,128.14,128.07,26.1667]
[1725805426251,3.9034,128.1,128.07,26.1667]
[1725805430541,3.9033,128.11,128.08,3.9039]
[1725805430944,1.3952,128.14,128.07,22.2626]
[1725805431142,1.3952,128.14,128.07,1.2726]
[1725805431143,45.8152,128.14,128.07,1.2726]
[1725805431347,20.99,128.12,128.05,20.99]
[1725805431652,20.99,128.11,128.04,3.93989434]
[1725805431851,20.99,128.11,128.03,24.8955]
[1725805431852,3.9044,128.07,128.03,24.8955]
[1725805432053,20.99,128.11,128.03,24.8955]
[1725805432253,3.9044,128.07,128.03,28.81626674]
[1725805432944,3.9044,128.07,128.04,3.9052]
[1725805433146,3.9044,128.07,128.03,24.91076674]
[1725805433550,3.9044,128.07,128.03,28.81606674]
[1725805434454,3.9046,128.06,128.03,28.81606674]
[1725805434653,20.99,128.12,128.03,28.81606674]
[1725805434840,3.9046,128.06,128.03,28.81606674]
[1725805435046,5.28083442,128.14,128.01,20.99]
[1725805435047,20.99,128.09,128.01,20.99]
[1725805435246,20.99,128.07,127.99,20.99]
[1725805435742,20.99,128.07,127.99,24.8965]
[1725805436146,20.99,128.12,128.03,20.99]
[1725805436344,3.9048,128.06,128.03,24.8535476]
[1725805436755,3.9048,128.06,128.04,20.99]
[1725805436957,3.84284933,128.09,128.04,20.99]
[1725805437159,44.42,128.12,128.03,24.8535476]
[1725805437345,44.42,128.12,128.03,20.99]
[1725805437957,1.0,128.11,128.03,24.99179645]
[1725805438255,3.9048,128.06,128.03,24.99179645]
[1725805438849,3.9043,128.07,128.03,28.89729645]
[1725805439153,3.9043,128.07,128.04,20.99]
[1725805439353,3.9043,128.07,128.04,24.8952]
[1725805439752,3.9043,128.07,128.04,20.99]
[1725805440263,3.904,128.08,128.04,24.895]
[1725805440950,3.84840674,128.1,128.03,4.00179645]
[1725805441152,3.84840674,128.1,128.03,20.99]
[1725805441348,1.0,128.11,128.01,3.9536]
[1725805441349,1.0,128.11,128.05,20.99]
[1725805441655,1.3291,128.14,128.08,20.99]
[1725805441960,3.9031,128.11,128.08,20.99]
[1725805442457,1.3291,128.14,128.08,20.99]
[1725805442647,22.3766,128.17,128.1,20.99]
[1725805443050,3.9028,128.12,128.1,20.99]
[1725805443457,3.9028,128.12,128.08,20.99]
[1725805443652,20.99,128.15,128.08,20.99]
[1725805443960,20.99,128.15,128.06,25.1098]
[1725805444161,1.3037,128.14,128.06,25.1098]
[1725805444559,3.9035,128.1,128.06,25.1098]
[1725805445059,3.9031,128.11,128.07,3.904]
[1725805445858,3.9037,128.09,128.06,29.0143]
[1725805446360,1.3037,128.14,128.08,20.99]
[1725805446968,3.9033,128.11,128.08,20.99]
[1725805447364,1.3037,128.14,128.07,28.78979751]
[1725805447568,1.3037,128.14,128.07,24.8941]
[1725805448162,3.9032,128.11,128.07,24.8941]
[1725805448363,3.9032,128.11,128.08,24.8939]
[1725805448560,1.3037,128.14,128.08,20.99]
[1725805448863,45.8066,128.17,128.08,20.99]
[1725805449165,3.9029,128.12,128.08,20.99]
[1725805449564,3.9029,128.12,128.1,20.99]
[1725805449871,1.3866,128.17,128.1,20.99]
[1725805450470,3.9027,128.13,128.1,20.99]
[1725805450671,1.3866,128.17,128.1,20.99]
[1725805450973,22.3766,128.17,128.1,20.99]
[1725805451364,3.9029,128.12,128.1,20.99]
[1725805451572,3.9029,128.12,128.08,24.8938]
[1725805452671,3.9029,128.12,128.09,3.9036]
[1725805454573,3.9029,128.12,128.1,20.99]
[1725805455477,45.8066,128.17,128.08,20.99]
[1725805455478,22.3766,128.17,128.08,20.99]
[1725805455871,22.3766,128.17,128.1,20.99]
[1725805456272,3.9026,128.13,128.1,24.8933]
[1725805458081,175.37112647,128.18,128.1,24.8933]
[1725805458082,175.37112647,128.18,128.1,20.99]
[1725805458378,175.37112647,128.18,128.11,1.2852]
[1725805458773,3.9024,128.14,128.11,1.2852]
[1725805458973,175.37112647,128.18,128.11,1.2852]
[1725805459378,3.9026,128.13,128.11,1.2852]
[1725805461583,3.9027,128.12,128.11,1.2852]
[1725805462082,3.9027,128.12,128.1,20.99]
[1725805463284,3.9033,128.11,128.08,5.1812]
[1725805464077,3.9029,128.12,128.09,3.9036]
[1725805464282,3.9029,128.12,128.09,24.8936]
[1725805465282,3.9025,128.13,128.09,20.99]
[1725805465482,24.736,128.17,128.09,20.99]
[1725805465684,3.9026,128.13,128.09,24.8934]
[1725805465986,3.9026,128.13,128.09,20.99]
[1725805466683,3.9028,128.12,128.09,24.8935]
[1725805467085,3.9029,128.12,128.09,24.8936]
[1725805467290,1.306,128.17,128.09,20.99]
[1725805468190,3.903,128.12,128.09,20.99]
[1725805468788,3.903,128.11,128.09,20.99]
[1725805469186,1.306,128.17,128.09,24.8936]
[1725805470304,3.9028,128.12,128.09,24.8936]
[1725805471900,3.9031,128.11,128.09,20.99]
[1725805472196,1.306,128.17,128.09,20.99]
[1725805472584,3.9029,128.12,128.09,24.8935]
[1725805476298,3.9029,128.12,128.11,8.4]
[1725805479396,9.706,128.17,128.11,8.4]
[1725805479600,175.37112647,128.18,128.12,8.4]
[1725805479799,183.77112647,128.18,128.12,8.4]
[1725805480104,3.9024,128.13,128.12,8.4]
[1725805480696,8.4,128.17,128.11,8.4]
[1725805481495,3.9026,128.13,128.11,8.4]
[1725805482404,3.9026,128.13,128.1,3.9033]
[1725805482405,3.9026,128.13,128.12,8.4]
[1725805483401,183.77112647,128.18,128.12,12.3027]
[1725805483402,3.9022,128.14,128.12,12.3027]
[1725805483606,160.34112647,128.18,128.13,8.4]
[1725805484110,3.9021,128.15,128.13,8.4]
[1725805485501,3.9017,128.16,128.13,13.5844]
[1725805485701,3.9017,128.16,128.15,8.4]
[1725805491809,3.9013,128.17,128.15,8.4]
[1725805492005,3.9013,128.17,128.16,8.4]
[1725805494111,3.9016,128.16,128.14,9.716]
[1725805496612,3.9018,128.15,128.13,5.27006657]
[1725805496806,3.9018,128.15,128.14,8.4]
[1725805498514,3.9021,128.14,128.13,1.282]
[1725805498816,3.9021,128.14,128.13,9.682]
[1725805499507,3.902,128.15,128.13,9.682]
[1725805500203,3.9017,128.16,128.14,12.22997097]
[1725805500411,3.9017,128.16,128.15,8.4]
[1725805501414,31.83,128.2,128.13,9.682]
[1725805501712,31.83,128.19,128.13,9.682]
[1725805502810,8.4,128.16,128.08,1.2764]
[1725805503011,3.82558735,128.15,128.1,8.4]
[1725805503206,3.903,128.11,128.1,8.4]
[1725805504817,9.7202,128.17,128.1,8.4]
[1725805505017,1.3202,128.17,128.13,8.4]
[1725805505218,31.83,128.19,128.13,8.4]
[1725805506120,3.9021,128.14,128.13,8.4]
[1725805515521,3.902,128.15,128.13,8.4]
[1725805515712,3.902,128.15,128.14,8.4]
[1725805516124,3.9021,128.14,128.13,8.4]
[1725805516924,23.43,128.19,128.13,12.33428549]
[1725805517126,23.43,128.19,128.15,8.4]
[1725805517721,3.9016,128.16,128.15,8.4]
[1725805518722,8.4,128.18,128.12,8.4]
[1725805518922,8.4,128.17,128.11,8.4]
[1725805519327,31.83,128.16,128.1,8.4]
[1725805519531,3.84453289,128.15,128.1,8.4]
[1725805520522,3.903,128.12,128.1,8.4]
[1725805521334,3.903,128.12,128.11,8.4]
[1725805521934,3.903,128.12,128.1,8.4]
[1725805522721,3.85636221,128.15,128.1,8.4]
[1725805522925,31.83,128.16,128.1,8.4]
[1725805523228,3.903,128.11,128.1,8.4]
[1725805527134,3.9029,128.12,128.1,8.4]
[1725805527333,3.9029,128.12,128.11,8.4]
[1725805529644,81.01180996,128.18,128.11,8.4]
[1725805529844,31.83,128.18,128.13,8.4]
[1725805530038,3.9021,128.14,128.13,8.4]
[1725805538951,3.88064944,128.14,128.08,2.5627]
[1725805539150,3.9037,128.09,128.08,1.2863]
[1725805539349,8.4,128.11,128.06,12.28984167]
[1725805539550,8.4,128.11,128.06,8.4]
[1725805539950,3.9039,128.09,128.06,8.4]
[1725805540152,3.9039,128.09,128.06,12.38821141]
[1725805541258,3.9041,128.08,128.06,12.38821141]
[1725805543152,3.9041,128.08,128.07,8.4]
[1725805545960,8.4,128.09,128.0,2.7402]
[1725805546161,8.4,128.08,128.02,8.4]
[1725805546458,8.4,128.08,128.0,2.7402]
[1725805546459,8.4,128.07,128.0,2.7402]
[1725805546757,8.4,128.02,127.9,3.60474339]
[1725805546958,3.9069,127.99,127.93,2.6236]
[1725805547156,3.9069,127.99,127.97,8.4]
[1725805547663,3.83491414,128.03,127.97,8.4]
[1725805547853,11.1455,128.04,127.97,8.4]
[1725805548156,3.9069,127.99,127.97,8.4]
[1725805548552,3.9069,127.99,127.96,3.94542027]
[1725805548751,3.9069,127.99,127.97,8.4]
[1725805549553,2.7455,128.04,127.97,8.4]
[1725805549554,3.9065,128.0,127.97,8.4]
[1725805549759,3.9065,128.0,127.98,8.4]
[1725805550262,3.9066,128.0,127.97,21.0]
[1725805550465,3.9066,128.0,127.97,24.90021878]
[1725805551168,3.9067,127.99,127.97,24.90021878]
[1725805551362,3.95061728,128.03,127.97,24.90021878]
[1725805551558,2.7455,128.04,127.97,24.90021878]
[1725805551762,3.907,127.98,127.93,2.6236]
[1725805552062,3.907,127.98,127.95,21.0]
[1725805552753,3.907,127.98,127.96,3.86653121]
[1725805554158,3.907,127.98,127.95,21.0]
[1725805554762,3.907,127.98,127.95,24.95795889]